fUSD/lending_fUSD_20250809
["ID","MTS","AMOUNT","RATE_DAILY","PERIOD"]
[378135835,1754741450352,-400.0,0.00024657,2]
[378135837,1754741450362,-422.13,0.00024657,2]
[378135839,1754741450371,-1753.85,0.00024657,2]
[378135841,1754741450381,-400.0,0.00024657,2]
[378135843,1754741450390,-576.07,0.00024657,2]
[378135845,1754741450400,-400.0,0.00024657,2]
[378135847,1754741450410,-423.79,0.00024657,2]
[378135849,1754741450421,-448.1,0.00024657,2]
[378135851,1754741450431,-400.0,0.00024657,2]
[378135853,1754741450441,-487.99,0.00024657,2]
[378135856,1754741450450,-400.0,0.00024657,2]
[378135858,1754741450460,-400.0,0.00024657,2]
[378135860,1754741450469,-410.98,0.00024657,2]
[378135862,1754741450479,-3895.84,0.00024657,2]
[378135864,1754741450488,-752.89,0.00024657,2]
[378135865,1754741450498,-637.47,0.00024657,2]
[378135867,1754741450507,-400.0,0.00024657,2]
[378135869,1754741450516,-400.0,0.00024657,2]
[378135872,1754741450526,-612.49,0.00024657,2]
[378135874,1754741450535,-503.75,0.00024657,2]
[378135876,1754741450545,-400.0,0.00024657,2]
[378135878,1754741450555,-509.1,0.00024657,2]
[378135879,1754741450564,-400.0,0.00024657,2]
[378135882,1754741450576,-418.92,0.00024657,2]
[378135884,1754741450585,-650.87,0.00024657,2]
[378135886,1754741450595,-400.0,0.00024657,2]
[378135888,1754741450604,-730.62,0.00024657,2]
[378135890,1754741450616,-400.0,0.00024657,2]
[378135892,1754741450625,-433.6,0.00024657,2]
[378135894,1754741450634,-400.0,0.00024657,2]
[378135896,1754741450643,-400.0,0.00024657,2]
[378135898,1754741450653,-552.7,0.00024657,2]
[378135900,1754741450663,-432.86,0.00024657,2]
[378135902,1754741450673,-589.92,0.00024657,2]
[378135904,1754741450682,-400.0,0.00024657,2]
[378135906,1754741450694,-400.0,0.00024657,2]
[378135908,1754741450703,-574.16,0.00024657,2]
[378135910,1754741450713,-400.0,0.00024657,2]
[378135912,1754741450722,-874.98,0.00024657,2]
[378135914,1754741450733,-400.0,0.00024657,2]
[378135916,1754741450742,-773.99,0.00024657,2]
[378135918,1754741450752,-400.0,0.00024657,2]
[378135920,1754741450762,-2076.91,0.00024657,2]
[378135922,1754741450771,-400.0,0.00024657,2]
[378135924,1754741450781,-400.0,0.00024657,2]
[378135926,1754741450790,-500.0,0.00024657,2]
[378135928,1754741450800,-400.0,0.00024657,2]
[378135930,1754741450809,-500.0,0.00024657,2]
[378135932,1754741450819,-227.52,0.00024657,2]
[378135934,1754741450828,-420.76,0.00024657,2]
[378135936,1754741450837,-612.2,0.00024657,2]
[378135938,1754741450846,-400.0,0.00024657,2]
[378135940,1754741450856,-492.06,0.00024657,2]
[378135942,1754741450866,-410.8,0.00024657,2]
[378135944,1754741450875,-421.9268151,0.00024657,2]
[378135946,1754741450884,-400.0,0.00024657,2]
[378135948,1754741450894,-400.0,0.00024657,2]
[378135950,1754741450903,-400.0,0.00024657,2]
[378135952,1754741450913,-400.0,0.00024657,2]
[378135954,1754741450922,-400.0,0.00024657,2]
[378135956,1754741450932,-400.0,0.00024657,2]
[378135958,1754741450941,-815.89,0.00024657,2]
[378135960,1754741450951,-1296.63,0.00024657,2]
[378135962,1754741450960,-400.0,0.00024657,2]
[378135964,1754741450970,-400.0,0.00024657,2]
[378135966,1754741450979,-1005.18,0.00024657,2]
[378135968,1754741450989,-400.0,0.00024657,2]
[378135970,1754741450999,-400.0,0.00024657,2]
[378135972,1754741451008,-573.76,0.00024657,2]
[378135974,1754741451018,-400.0,0.00024657,2]
[378135976,1754741451027,-439.89,0.00024657,2]
[378135978,1754741451037,-400.0,0.00024657,2]
[378135980,1754741451046,-453.29,0.00024657,2]
[378135982,1754741451056,-400.0,0.00024657,2]
[378135984,1754741451065,-444.98935686,0.00024657,2]
[378135986,1754741451075,-400.0,0.00024657,2]
[378135988,1754741451084,-400.0,0.00024657,2]
[378135990,1754741451093,-673.26,0.00024657,2]
[378135992,1754741451103,-400.0,0.00024657,2]
[378135994,1754741451113,-400.0,0.00024657,2]
[378135996,1754741451122,-591.11,0.00024657,2]
[378135998,1754741451132,-400.0,0.00024657,2]
[378136000,1754741451142,-584.27,0.00024657,2]
[378136002,1754741451151,-618.24,0.00024657,2]
[378136004,1754741451161,-400.0,0.00024657,2]
[378136006,1754741451172,-400.0,0.00024657,2]
[378136008,1754741451181,-400.0,0.00024657,2]
[378136010,1754741451191,-400.0,0.00024657,2]
[378136012,1754741451200,-475.78,0.00024657,2]
[378136014,1754741451209,-400.0,0.00024657,2]
[378136017,1754741451220,-400.0,0.00024657,2]
[378136019,1754741451229,-400.0,0.00024657,2]
[378136021,1754741451239,-400.0,0.00024657,2]
[378136023,1754741451248,-416.434948,0.00024657,2]
[378136025,1754741451258,-634.5,0.00024657,2]
[378136027,1754741451268,-400.0,0.00024657,2]
[378136029,1754741451277,-641.23,0.00024657,2]
[378136031,1754741451287,-400.0,0.00024657,2]
[378136033,1754741451300,-400.0,0.00024657,2]
[378136035,1754741451311,-407.05,0.00024657,2]
[378136037,1754741451321,-569.73,0.00024657,2]
[378136039,1754741451331,-400.0,0.00024657,2]
[378136041,1754741451341,-400.0,0.00024657,2]
[378136043,1754741451350,-413.84044084,0.00024657,2]
[378136045,1754741451360,-400.0,0.00024657,2]
[378136047,1754741451370,-611.26,0.00024657,2]
[378136049,1754741451379,-400.0,0.00024657,2]
[378136052,1754741451389,-400.0,0.00024657,2]
[378136054,1754741451399,-400.0,0.00024657,2]
[378136056,1754741451409,-429.38,0.00024657,2]
[378136057,1754741451419,-400.0,0.00024657,2]
[378136058,1754741451429,-571.28,0.00024657,2]
[378136059,1754741451440,-455.08,0.00024657,2]
[378136060,1754741451450,-404.60720682,0.00024657,2]
[378136061,1754741451460,-456.35,0.00024657,2]
[378136062,1754741451470,-400.0,0.00024657,2]
[378136063,1754741451480,-400.0,0.00024657,2]
[378136064,1754741451490,-400.0,0.00024657,2]
[378136065,1754741451501,-400.0,0.00024657,2]
[378136066,1754741451511,-819.52,0.00024657,2]
[378136067,1754741451521,-400.0,0.00024657,2]
[378136068,1754741451531,-400.0,0.00024657,2]
[378136069,1754741451541,-400.0,0.00024657,2]
[378136071,1754741451551,-400.0,0.00024657,2]
[378136073,1754741451561,-400.0,0.00024657,2]
[378136075,1754741451571,-400.0,0.00024657,2]
[378136078,1754741451583,-400.0,0.00024657,2]
[378136080,1754741451593,-530.38,0.00024657,2]
[378136082,1754741451604,-400.0,0.00024657,2]
[378136084,1754741451617,-400.0,0.00024657,2]
[378136086,1754741451627,-400.0,0.00024657,2]
[378136088,1754741451636,-400.0,0.00024657,2]
[378136090,1754741451646,-412.21,0.00024657,2]
[378136092,1754741451657,-400.0,0.00024657,2]
[378136094,1754741451667,-400.0,0.00024657,2]
[378136096,1754741451678,-400.0,0.00024657,2]
[378136098,1754741451690,-856.02,0.00024657,2]
[378136100,1754741451699,-400.0,0.00024657,2]
[378136103,1754741451709,-400.0,0.00024657,2]
[378136105,1754741451719,-405.53065982,0.00024657,2]
[378136107,1754741451728,-403.72649066,0.00024657,2]
[378136108,1754741451738,-500.0,0.00024657,2]
[378136111,1754741451748,-400.0,0.00024657,2]
[378136113,1754741451758,-740.5,0.00024657,2]
[378136115,1754741451767,-400.0,0.00024657,2]
[378136116,1754741451778,-400.0,0.00024657,2]
[378136118,1754741451787,-400.0,0.00024657,2]
[378136120,1754741451797,-400.0,0.00024657,2]
[378136122,1754741451806,-400.0,0.00024657,2]
[378136124,1754741451816,-218.92651604,0.00024657,2]
[378136126,1754741451825,-400.0,0.00024657,2]
[378136128,1754741451835,-815.89,0.00024657,2]
[378136130,1754741451844,-400.0,0.00024657,2]
[378136132,1754741451854,-400.0,0.00024657,2]
[378136134,1754741451864,-482.61,0.00024657,2]
[378136136,1754741451873,-300.0,0.00024657,2]
[378136138,1754741451882,-771.99,0.00024657,2]
[378136140,1754741451892,-400.0,0.00024657,2]
[378136143,1754741451902,-400.0,0.00024657,2]
[378136144,1754741451912,-400.0,0.00024657,2]
[378136146,1754741451922,-400.0,0.00024657,2]
[378136149,1754741451932,-460.64,0.00024657,2]
[378136151,1754741451941,-400.0,0.00024657,2]
[378136152,1754741451951,-784.29,0.00024657,2]
[378136155,1754741451960,-628.71,0.00024657,2]
[378136157,1754741451970,-400.0,0.00024657,2]
[378136159,1754741451979,-546.87,0.00024657,2]
[378136161,1754741451989,-400.0,0.00024657,2]
[378136163,1754741451998,-400.0,0.00024657,2]
[378136165,1754741452007,-896.0,0.00024657,2]
[378136167,1754741452017,-400.0,0.00024657,2]
[378136169,1754741452027,-400.0,0.00024657,2]
[378136171,1754741452036,-416.16,0.00024657,2]
[378136173,1754741452046,-400.0,0.00024657,2]
[378136175,1754741452056,-400.0,0.00024657,2]
[378136177,1754741452065,-320.65245566,0.00024657,2]
[378136179,1754741452075,-449.22,0.00024657,2]
[378136180,1754741452084,-400.0,0.00024657,2]
[378136183,1754741452094,-478.87,0.00024657,2]
[378136185,1754741452103,-400.0,0.00024657,2]
[378136187,1754741452113,-400.0,0.00024657,2]
[378136189,1754741452122,-769.29,0.00024657,2]
[378136191,1754741452131,-400.0,0.00024657,2]
[378136192,1754741452141,-400.0,0.00024657,2]
[378136193,1754741452150,-400.0,0.00024657,2]
[378136194,1754741452160,-400.0,0.00024657,2]
[378136195,1754741452170,-404.18127324,0.00024657,2]
[378136196,1754741452179,-517.09,0.00024657,2]
[378136197,1754741452189,-400.0,0.00024657,2]
[378136198,1754741452198,-400.0,0.00024657,2]
[378136199,1754741452208,-452.78,0.00024657,2]
[378136200,1754741452217,-400.0,0.00024657,2]
[378136201,1754741452226,-435.58,0.00024657,2]
[378136202,1754741452236,-533.63,0.00024657,2]
[378136203,1754741452246,-829.33,0.00024657,2]
[378136204,1754741452255,-400.0,0.00024657,2]
[378136205,1754741452265,-491.48,0.00024657,2]
[378136206,1754741452275,-748.59,0.00024657,2]
[378136207,1754741452285,-400.0,0.00024657,2]
[378136208,1754741452294,-400.0,0.00024657,2]
[378136209,1754741452304,-448.23,0.00024657,2]
[378136210,1754741452313,-458.0,0.00024657,2]
[378136211,1754741452323,-475.18,0.00024657,2]
[378136212,1754741452332,-400.0,0.00024657,2]
[378136213,1754741452341,-400.0,0.00024657,2]
[378136214,1754741452351,-400.0,0.00024657,2]
[378136216,1754741452360,-400.0,0.00024657,2]
[378136218,1754741452370,-400.0,0.00024657,2]
[378136221,1754741452379,-400.0,0.00024657,2]
[378136223,1754741452389,-241.88497668,0.00024657,2]
[378136225,1754741452399,-400.0,0.00024657,2]
[378136227,1754741452409,-2274.55,0.00024657,2]
[378136229,1754741452419,-400.0,0.00024657,2]
[378136231,1754741452428,-400.0,0.00024657,2]
[378136233,1754741452437,-602.16,0.00024657,2]
[378136235,1754741452447,-524.19,0.00024657,2]
[378136237,1754741452456,-400.0,0.00024657,2]
[378136239,1754741452466,-510.29,0.00024657,2]
[378136241,1754741452476,-400.0,0.00024657,2]
[378136243,1754741452485,-438.71,0.00024657,2]
[378136255,1754741452592,-400.0,0.00024657,2]
[378136257,1754741452601,-1642.02,0.00024657,2]
[378136259,1754741452613,-400.0,0.00024657,2]
[378136261,1754741452623,-400.0,0.00024657,2]
[378136263,1754741452632,-400.0,0.00024657,2]
[378136265,1754741452642,-832.49,0.00024657,2]
[378136267,1754741452651,-1171.13,0.00024657,2]
[378136269,1754741452662,-400.0,0.00024657,2]
[378136271,1754741452672,-400.0,0.00024657,2]
[378136273,1754741452681,-400.0,0.00024657,2]
[378136275,1754741452692,-400.0,0.00024657,2]
[378136277,1754741452701,-400.0,0.00024657,2]
[378136279,1754741452710,-400.0,0.00024657,2]
[378136281,1754741452720,-400.0,0.00024657,2]
[378136283,1754741452729,-595.3,0.00024657,2]
[378136285,1754741452739,-401.12671263,0.00024657,2]
[378136287,1754741452748,-176.70065153,0.00024657,2]
[378136289,1754741452757,-400.0,0.00024657,2]
[378136291,1754741452766,-400.0,0.00024657,2]
[378136293,1754741452775,-1279.82,0.00024657,2]
[378136295,1754741452784,-400.0,0.00024657,2]
[378136297,1754741452794,-624.18,0.00024657,2]
[378136299,1754741452803,-400.0,0.00024657,2]
[378136301,1754741452811,-400.0,0.00024657,2]
[378136303,1754741452820,-400.0,0.00024657,2]
[378136305,1754741452830,-400.0,0.00024657,2]
[378136307,1754741452838,-400.0,0.00024657,2]
[378136309,1754741452847,-400.0,0.00024657,2]
[378136311,1754741452857,-400.0,0.00024657,2]
[378136313,1754741452865,-400.0,0.00024657,2]
[378136315,1754741452874,-400.0,0.00024657,2]
[378136317,1754741452883,-400.0,0.00024657,2]
[378136319,1754741452892,-400.0,0.00024657,2]
[378136321,1754741452902,-400.0,0.00024657,2]
[378136323,1754741452911,-400.0,0.00024657,2]
[378136325,1754741452921,-400.0,0.00024657,2]
[378136327,1754741452930,-486.26,0.00024657,2]
[378136329,1754741452939,-400.0,0.00024657,2]
[378136331,1754741452948,-400.0,0.00024657,2]
[378136333,1754741452957,-400.0,0.00024657,2]
[378136335,1754741452966,-463.32,0.00024657,2]
[378136337,1754741452975,-400.0,0.00024657,2]
[378136339,1754741452985,-400.0,0.00024657,2]
[378136341,1754741452996,-572.21,0.00024657,2]
[378136343,1754741453006,-576.96,0.00024657,2]
[378136345,1754741453015,-400.0,0.00024657,2]
[378136347,1754741453025,-498.84,0.00024657,2]
[378136349,1754741453034,-400.0,0.00024657,2]
[378136351,1754741453044,-500.0,0.00024657,2]
[378136353,1754741453053,-500.0,0.00024657,2]
[378136355,1754741453062,-400.0,0.00024657,2]
[378136357,1754741453071,-213.75589472,0.00024657,2]
[378136359,1754741453081,-400.0,0.00024657,2]
[378136361,1754741453090,-400.0,0.00024657,2]
[378136363,1754741453099,-400.0,0.00024657,2]
[378136365,1754741453107,-400.0,0.00024657,2]
[378136367,1754741453117,-400.0,0.00024657,2]
[378136369,1754741453126,-924.63,0.00024657,2]
[378136371,1754741453135,-3967.34,0.00024657,2]
[378136373,1754741453144,-400.0,0.00024657,2]
[378136375,1754741453154,-532.76,0.00024657,2]
[378136377,1754741453163,-400.0,0.00024657,2]
[378136379,1754741453172,-400.0,0.00024657,2]
[378136381,1754741453181,-400.0,0.00024657,2]
[378136383,1754741453190,-400.0,0.00024657,2]
[378136385,1754741453199,-401.36833293,0.00024657,2]
[378136387,1754741453211,-400.0,0.00024657,2]
[378136389,1754741453220,-400.0,0.00024657,2]
[378136391,1754741453229,-400.0,0.00024657,2]
[378136393,1754741453238,-445.57,0.00024657,2]
[378136395,1754741453248,-400.0,0.00024657,2]
[378136397,1754741453257,-400.0,0.00024657,2]
[378136399,1754741453266,-400.0,0.00024657,2]
[378136401,1754741453275,-400.0,0.00024657,2]
[378136403,1754741453285,-400.74724673,0.00024657,2]
[378136405,1754741453294,-400.0,0.00024657,2]
[378136407,1754741453303,-400.0,0.00024657,2]
[378136409,1754741453312,-400.0,0.00024657,2]
[378136411,1754741453322,-1059.14,0.00024657,2]
[378136413,1754741453333,-400.0,0.00024657,2]
[378136415,1754741453342,-400.0,0.00024657,2]
[378136417,1754741453351,-491.09,0.00024657,2]
[378136419,1754741453360,-400.0,0.00024657,2]
[378136421,1754741453369,-400.0,0.00024657,2]
[378136422,1754741453378,-400.0,0.00024657,2]
[378136424,1754741453387,-400.0,0.00024657,2]
[378136426,1754741453398,-402.88819106,0.00024657,2]
[378136428,1754741453407,-400.0,0.00024657,2]
[378136431,1754741453417,-181.12115562,0.00024657,2]
[378136433,1754741453426,-1787.61,0.00024657,2]
[378136434,1754741453435,-400.0,0.00024657,2]
[378136437,1754741453445,-400.0,0.00024657,2]
[378136439,1754741453454,-400.0,0.00024657,2]
[378136441,1754741453464,-400.0,0.00024657,2]
[378136442,1754741453474,-400.0,0.00024657,2]
[378136444,1754741453483,-537.93,0.00024657,2]
[378136446,1754741453493,-500.0,0.00024657,2]
[378136448,1754741453503,-500.0,0.00024657,2]
[378136450,1754741453513,-467.44,0.00024657,2]
[378136453,1754741453523,-400.0,0.00024657,2]
[378136454,1754741453533,-528.51,0.00024657,2]
[378136456,1754741453542,-695.82,0.00024657,2]
[378136458,1754741453552,-400.0,0.00024657,2]
[378136460,1754741453563,-400.0,0.00024657,2]
[378136463,1754741453573,-400.0,0.00024657,2]
[378136465,1754741453582,-400.0,0.00024657,2]
[378136466,1754741453592,-400.0,0.00024657,2]
[378136468,1754741453601,-402.0,0.00024657,2]
[378136470,1754741453613,-400.0,0.00024657,2]
[378136472,1754741453622,-400.0,0.00024657,2]
[378136474,1754741453631,-935.82,0.00024657,2]
[378136477,1754741453641,-400.0,0.00024657,2]
[378136479,1754741453650,-400.0,0.00024657,2]
[378136481,1754741453661,-1000.0,0.00024657,2]
[378136483,1754741453672,-400.0,0.00024657,2]
[378136485,1754741453681,-578.92719708,0.00024673,2]
[378136487,1754741453691,-500.0,0.00024673,2]
[378136488,1754741453701,-270.32910114,0.00024673,2]
[378136490,1754741453710,-299.40112017,0.00024673,2]
[378136492,1754741453719,-619.18417438,0.00024673,2]
[378136494,1754741453728,-500.0,0.00024673,2]
[378136496,1754741453737,-3268.68,0.00024685,30]
[378136498,1754741453746,-508.0,0.00024698,8]
[378136500,1754741453755,-467.7,0.00024795,2]
[378136502,1754741453764,-796.99,0.00024795,2]
[378136504,1754741453773,-796.99,0.00024795,2]
[378136506,1754741453783,-467.7,0.00024795,2]
[378136508,1754741453792,-1457.49,0.00024795,2]
[378136511,1754741453802,-500.0,0.00024799,2]
[378136512,1754741453811,-178.27,0.00024799,2]
[378136514,1754741453820,-500.0,0.00024799,2]
[378136516,1754741453829,-500.0,0.00024799,2]
[378136519,1754741453839,-500.0,0.00024799,2]
[378136521,1754741453848,-500.0,0.00024799,2]
[378136523,1754741453858,-500.0,0.00024799,2]
[378136525,1754741453867,-500.0,0.00024799,2]
[378136526,1754741453876,-500.0,0.00024799,2]
[378136528,1754741453885,-500.0,0.00024799,2]
[378136530,1754741453894,-1201.39648619,0.00024801,2]
[378136532,1754741453903,-168.0,0.00024816,2]
[378136534,1754741453912,-3653.2924,0.00024831,2]
[378136536,1754741453922,-270.41087216,0.00024831,2]
[378136537,1754741453931,-168.0,0.00024842,2]
[378136538,1754741453940,-2208.58349508,0.00024889,2]
[378136539,1754741453949,-500.0,0.00024899,2]
[378136540,1754741453958,-1000.0,0.00024908,2]
[378136541,1754741453967,-500.0,0.0002492,2]
[378136542,1754741453976,-500.0,0.0002492,2]
[378136543,1754741453986,-412.20449926,0.00024921,2]
[378136544,1754741453995,-500.0,0.0002493,2]
[378136545,1754741454005,-500.0,0.0002493,2]
[378136546,1754741454013,-479.34,0.0002493,2]
[378136547,1754741454023,-500.0,0.0002493,2]
[378136549,1754741454031,-500.0,0.0002493,2]
[378136551,1754741454041,-500.0,0.0002493,2]
[378136553,1754741454050,-500.0,0.0002493,2]
[378136555,1754741454059,-343.87,0.0002493,2]
[378136557,1754741454069,-500.0,0.0002493,2]
[378136559,1754741454078,-500.0,0.0002493,2]
[378136561,1754741454087,-304.09,0.00024931,2]
[378136563,1754741454096,-400.0,0.00024931,2]
[378136565,1754741454106,-152.788791,0.00024931,2]
[378136567,1754741454115,-1127.276391,0.00024931,2]
[378136569,1754741454124,-400.0,0.00024931,2]
[378136571,1754741454134,-2304.476226,0.00024931,2]
[378136573,1754741454143,-400.0,0.00024931,2]
[378136575,1754741454153,-2164.833233,0.00024931,2]
[378136576,1754741454162,-174.162444,0.00024931,2]
[378136577,1754741454172,-400.0,0.00024931,2]
[378136578,1754741454181,-400.0,0.00024931,2]
[378136579,1754741454191,-400.0,0.00024931,2]
[378136580,1754741454200,-400.0,0.00024931,2]
[378136581,1754741454210,-400.0,0.00024931,2]
[378136582,1754741454219,-400.0,0.00024931,2]
[378136583,1754741454228,-326.63,0.00024931,2]
[378136584,1754741454238,-400.0,0.00024931,2]
[378136585,1754741454247,-400.0,0.00024931,2]
[378136586,1754741454258,-400.0,0.00024931,2]
[378136587,1754741454267,-463.42,0.00024931,2]
[378136588,1754741454277,-240.42,0.00024931,2]
[378136589,1754741454286,-517.33,0.00024931,2]
[378136591,1754741454295,-339.52,0.00024931,2]
[378136593,1754741454305,-161.58,0.00024931,2]
[378136595,1754741454314,-441.4,0.00024931,2]
[378136597,1754741454323,-400.0,0.00024931,2]
[378136599,1754741454333,-400.0,0.00024931,2]
[378136601,1754741454342,-289.17,0.00024931,2]
[378136603,1754741454352,-400.0,0.00024931,2]
[378136605,1754741454362,-434.35,0.00024931,2]
[378136607,1754741454371,-409.27,0.00024931,2]
[378136609,1754741454380,-400.0,0.00024931,2]
[378136611,1754741454389,-165.9,0.00024931,2]
[378136613,1754741454399,-400.0,0.00024931,2]
[378136615,1754741454407,-400.0,0.00024931,2]
[378136617,1754741454417,-354.18,0.00024931,2]
[378136618,1754741454426,-269.89,0.00024931,2]
[378136620,1754741454435,-283.1,0.00024931,2]
[378136622,1754741454444,-400.0,0.00024931,2]
[378136624,1754741454454,-400.0,0.00024931,2]
[378136627,1754741454463,-400.0,0.00024931,2]
[378136629,1754741454473,-519.28,0.00024931,2]
[378136630,1754741454482,-415.45,0.00024931,2]
[378136632,1754741454491,-400.0,0.00024931,2]
[378136634,1754741454501,-400.0,0.00024931,2]
[378136636,1754741454510,-400.0,0.00024931,2]
[378136639,1754741454519,-400.0,0.00024931,2]
[378136640,1754741454529,-400.0,0.00024931,2]
[378136642,1754741454538,-400.0,0.00024931,2]
[378136644,1754741454547,-400.0,0.00024931,2]
[378136646,1754741454557,-400.0,0.00024931,2]
[378136648,1754741454566,-366.17,0.00024931,2]
[378136650,1754741454576,-400.0,0.00024931,2]
[378136652,1754741454585,-481.53,0.00024931,2]
[378136654,1754741454594,-174.76,0.00024931,2]
[378136656,1754741454603,-204.89125328,0.00024931,2]
[378136658,1754741454612,-400.0,0.00024931,2]
[378136660,1754741454627,-400.0,0.00024931,2]
[378136662,1754741454636,-400.0,0.00024931,2]
[378136664,1754741454645,-229.57,0.00024931,2]
[378136666,1754741454654,-400.0,0.00024931,2]
[378136668,1754741454664,-400.0,0.00024931,2]
[378136670,1754741454674,-536.14,0.00024931,2]
[378136671,1754741454683,-400.0,0.00024931,2]
[378136672,1754741454693,-352.58,0.00024931,2]
[378136673,1754741454702,-400.0,0.00024931,2]
[378136674,1754741454711,-400.0,0.00024931,2]
[378136675,1754741454721,-400.0,0.00024931,2]
[378136676,1754741454730,-400.0,0.00024931,2]
[378136677,1754741454739,-400.0,0.00024931,2]
[378136678,1754741454749,-400.0,0.00024931,2]
[378136680,1754741454758,-400.0,0.00024931,2]
[378136682,1754741454767,-400.0,0.00024931,2]
[378136684,1754741454776,-400.0,0.00024931,2]
[378136686,1754741454787,-400.0,0.00024931,2]
[378136688,1754741454796,-576.09,0.00024931,2]
[378136690,1754741454805,-586.47,0.00024931,2]
[378136692,1754741454815,-400.0,0.00024931,2]
[378136694,1754741454824,-400.0,0.00024931,2]
[378136696,1754741454834,-400.0,0.00024931,2]
[378136698,1754741454843,-155.26,0.00024931,2]
[378136700,1754741454853,-400.0,0.00024931,2]
[378136702,1754741454862,-400.0,0.00024931,2]
[378136704,1754741454871,-400.0,0.00024931,2]
[378136706,1754741454880,-333.49,0.00024931,2]
[378136708,1754741454889,-400.0,0.00024931,2]
[378136710,1754741454899,-400.0,0.00024931,2]
[378136712,1754741454909,-165.22,0.00024931,2]
[378136714,1754741454920,-400.0,0.00024931,2]
[378136716,1754741454929,-400.0,0.00024931,2]
[378136718,1754741454939,-400.0,0.00024931,2]
[378136720,1754741454948,-400.0,0.00024931,2]
[378136722,1754741454958,-292.23348779,0.00024931,2]
[378136724,1754741454967,-400.0,0.00024931,2]
[378136726,1754741454976,-400.0,0.00024931,2]
[378136728,1754741454986,-400.0,0.00024931,2]
[378136730,1754741454995,-400.0,0.00024931,2]
[378136732,1754741455004,-400.0,0.00024931,2]
[378136734,1754741455013,-400.0,0.00024931,2]
[378136736,1754741455022,-266.63453689,0.00024931,2]
[378136823,1754741599640,500.0,0.00024941,120]
[378136826,1754741674790,180.09,0.00013699,2]
[378136858,1754742197668,444.558291,0.00024943,120]
[378136864,1754742263917,306.01,0.00017059,2]
[378136879,1754742501866,4000.0,0.00012,30]
[378136880,1754742501888,3480.22022251,0.00012,30]
[378136905,1754742631709,-435.61074733,0.00018639,2]
[378136906,1754742631718,-250.0,0.00018739,2]
[378136907,1754742631728,-306.01,0.00018789,2]
[378136908,1754742631737,-300.0,0.00018789,2]
[378136909,1754742631747,-300.0,0.00018789,2]
[378136910,1754742631757,-1200.0,0.00018899,2]
[378136911,1754742631766,-357.27452389,0.000189,2]
[378136912,1754742631775,-1343.25380227,0.000189,2]
[378136913,1754742631786,-585.04221874,0.000189,2]
[378136914,1754742631796,-165.62176334,0.000189,2]
[378136915,1754742631805,-247.17538337,0.000189,2]
[378136916,1754742631815,-500.0,0.00018973,2]
[378136917,1754742631824,-500.0,0.00018973,2]
[378136918,1754742631833,-500.0,0.00018973,2]
[378136919,1754742631842,-500.0,0.00018973,2]